Cogmind - Beta 14 @@@ ROGUE MODE // 2024.08.12 @ 09:18:26 Player: Compilatron Result: Destroyed by G-50 Soldier with Heavy Laser Performance ------------- Evolutions (1) 500 Regions Visited (5) 1000 Robots Destroyed (47) 235 Value Destroyed (972) 972 Prototype IDs (0) 0 Alien Tech Used (0) 0 Bonus (0) 0 TOTAL SCORE: 2707 Bonus ------- None Cogmind --------- Core Integrity 0/400 Matter 292/300 Energy 275/275 System Corruption 0% Temperature Warm (181) Movement Walking (450) Ox4 Location -8/Mines Parts ------- > --- POWER (1) -------- Deuterium Engine > --- PROPULSION (2) --- VSS Leg > --- UTILITY (3) ------ High-capacity Storage Unit > --- WEAPON (3) ------- Particle Gun Mini Grenade Launcher > --- INVENTORY (20) --- Deuterium Engine VSS Leg VSS Leg Compact Wheel Large Matter Pod (126) Terrain Scan Processor Seismic Detector Hacking Suite Hacking Suite Hacking Suite Hacking Suite Heavy Assault Rifle Peak State ------------ > --- POWER ------------ Deuterium Engine > --- PROPULSION ------- VSS Leg VSS Leg > --- UTILITY ---------- High-capacity Storage Unit Sensor Array Signal Interpreter > --- WEAPON ----------- Particle Gun Assault Rifle Mini Grenade Launcher > --- INVENTORY -------- Deuterium Engine VSS Leg VSS Leg Compact Wheel Large Matter Pod Terrain Scan Processor Seismic Detector Hacking Suite Hacking Suite Hacking Suite Hacking Suite Heavy Assault Rifle [Rating: 19] Favorites ----------- Power Ion Engine Engine Ion Engine Propulsion VSS Leg Treads Light Treads Leg VSS Leg Utility High-capacity Storage Unit Device Sensor Array Storage High-capacity Storage Unit Processor Signal Interpreter Weapon Assault Rifle Energy Gun Medium Laser Ballistic Gun Assault Rifle Launcher Mini Grenade Launcher Build | -11 -10 -9 -9 -9 -8 ------- Run | Yrd Mat Mat Min Exi Min Slots Evolved 2 | . . 2 . . . Power . | . . . . . . Propulsion . | . . . . . . Utility 1 | . . 1 . . . Weapon 1 | . . 1 . . . Parts Attached 25 | 3 3 15 3 . 1 Power 2 | . . 1 . . 1 Engine 2 | . . 1 . . 1 Core . | . . . . . . Reactor . | . . . . . . Propulsion 10 | 2 . 8 . . . Treads 6 | 2 . 4 . . . Leg 4 | . . 4 . . . Wheel . | . . . . . . Hover . | . . . . . . Flight . | . . . . . . Utility 4 | . 3 1 . . . Device 2 | . 1 1 . . . Storage 1 | . 1 . . . . Processor 1 | . 1 . . . . Hackware . | . . . . . . Protection . | . . . . . . Artifact . | . . . . . . Weapon 9 | 1 . 5 3 . . Energy Gun 1 | . . . 1 . . Energy Cannon . | . . . . . . Ballistic Gun 7 | 1 . 4 2 . . Ballistic Cannon . | . . . . . . Launcher 1 | . . 1 . . . Special Weapon . | . . . . . . Impact Weapon . | . . . . . . Slashing Weapon . | . . . . . . Piercing Weapon . | . . . . . . Special Melee Weapon . | . . . . . . Unidentified Prototypes . | . . . . . . Parts Lost 13 | . . 5 3 . 5 Power 2 | . . 1 . . 1 Propulsion 4 | . . 3 . . 1 Utility 2 | . . . . . 2 Weapon 5 | . . 1 3 . 1 Highest Loss Streak 4 | . . 2 2 . 4 To Critical Strikes . | . . . . . . Average Slot Usage (%) 99 | . 99 99 99 100 97 Engine 11 | . 14 10 11 11 10 Treads 12 | . 28 20 . . . Leg 10 | . . . 22 22 21 Device 9 | . 2 11 11 11 10 Storage 11 | . 14 11 11 11 11 Processor 10 | . 10 11 11 11 10 Energy Gun 9 | . 14 6 2 11 11 Ballistic Gun 15 | . 14 20 19 11 10 Launcher 6 | . . 5 11 11 11 Peak Build Rating 19 | 6 8 18 18 18 19 Average Rating 14 | 6 7 13 17 18 17 On Entrance 12 | 6 6 8 18 18 18 Naked Turns . | . . . . . . Heaviest Build 56 | 14 50 54 52 52 56 Greatest Support 43 | 40 40 43 24 24 24 Greatest Overweight (x) 2 | . 1 2 2 2 2 Average Overweight (x) 1 | . . 1 2 2 1 Largest Inventory Capacity 20 | 8 20 20 20 20 20 Average Capacity 19 | 8 18 20 20 20 20 Most Carried 17 | 6 12 17 14 13 13 Average Carried 12 | 6 10 13 13 13 12 Final Capacity 20 | 8 20 20 20 20 20 Final Carried 14 | 6 12 14 13 13 12 Class Distribution -------------------- 76% | Skirmisher 23% | Mutant Dominant Class ---------------- Mutant | -10/Materials Skirmisher | -9/Materials Skirmisher | -9/Mines Skirmisher | -9/Exiles Skirmisher | -8/Mines Resources | -11 -10 -9 -9 -9 -8 ----------- Run | Yrd Mat Mat Min Exi Min Matter Collected 1058 | 184 127 278 263 150 56 Remotely . | . . . . . . Salvage Created 1171 | . 155 710 207 . 99 Parts 96 | . 15 65 12 . 4 Haulers Intercepted 1 | . 1 . . . . Recyclers Shooed . | . . . . . . Parts Field Recycled . | . . . . . . Retrieved Matter . | . . . . . . Parts Self-Destructed . | . . . . . . Prevented . | . . . . . . Kills | -11 -10 -9 -9 -9 -8 ------- Run | Yrd Mat Mat Min Exi Min Combat Hostiles Destroyed 35 | . 3 22 8 . 2 Guns 29 | . 3 18 6 . 2 AOE 6 | . . 4 2 . . Classes Destroyed 8 | . 3 5 . . . Worker 1 | . . 1 . . . Builder 2 | . . 2 . . . Hauler 1 | . 1 . . . . Recycler 1 | . . 1 . . . Watcher 7 | . 3 4 . . . Swarmer 19 | . 3 13 3 . . Grunt 11 | . . 4 5 . 2 Sentry 5 | . . 5 . . . Best Kill Streak 15 | . 4 15 6 . 2 Combat Bots Only 8 | . 3 8 6 . 2 Max Kills in Single Turn 4 | . 1 4 3 . 1 Gunslinging . | . . . . . . Exploded 2 | . . 2 2 . . Melee . | . . . . . . Uniques/NPCs Destroyed . | . . . . . . Combat | -11 -10 -9 -9 -9 -8 -------- Run | Yrd Mat Mat Min Exi Min Hostile Shots Fired 238 | . 23 135 59 . 21 Missed 71 | . 6 49 12 . 4 Damage Taken 1927 | . 136 856 633 . 302 Core 425 | . 19 115 180 . 111 Absorbed by Shields . | . . . . . . Core Remaining (%) 96 | 100 92 . . . . Volleys Fired 119 | . 25 59 23 . 12 Largest 3 | . 2 3 3 . 2 Hottest 103 | . 70 103 85 . 85 Shots Fired 246 | . 50 128 45 . 23 Gun 240 | . 50 124 43 . 23 Cannon . | . . . . . . Launcher 6 | . . 4 2 . . Special . | . . . . . . Kinetic 150 | . 25 79 35 . 11 Thermal 90 | . 25 45 8 . 12 Explosive 6 | . . 4 2 . . Electromagnetic . | . . . . . . Robot Hit Streak 11 | . 7 9 11 . 5 Robot Miss Streak 4 | . 3 4 4 . 2 Penetration Max . | . . . . . . Secondary Targets 8 | . . 6 2 . . Max Gunslinging Chain 1 | . . 1 1 . . Shots Hit Robots 146 | . 27 73 32 . 14 Core Hits 74 | . 9 43 14 . 8 Critical Kills . | . . . . . . Critical Parts Destroyed . | . . . . . . Critical Strikes 10 | . 3 7 . . . Burn 10 | . 3 7 . . . Melee Attacks . | . . . . . . Impact . | . . . . . . Slashing . | . . . . . . Piercing . | . . . . . . Sneak Attacks . | . . . . . . Combat Hostiles . | . . . . . . Follow-up Attacks . | . . . . . . Damage Inflicted 2788 | . 351 1575 661 . 201 Guns 2050 | . 351 1068 430 . 201 Cannons . | . . . . . . Explosions 734 | . . 503 231 . . Melee . | . . . . . . Ramming 4 | . . 4 . . . Kinetic 1287 | . 178 694 338 . 77 Thermal 763 | . 173 374 92 . 124 Explosive 734 | . . 503 231 . . Electromagnetic . | . . . . . . Impact . | . . . . . . Slashing . | . . . . . . Piercing . | . . . . . . Highest Corruption . | . . . . . . Average Corruption . | . . . . . . Corruption Purged . | . . . . . . Corruption Blocked . | . . . . . . Overload Shots . | . . . . . . Overflow Damage 20 | . . 12 8 . . Projectiles . | . . . . . . Explosions 20 | . . 12 8 . . Melee . | . . . . . . Knockbacks . | . . . . . . Impact . | . . . . . . Kinetic . | . . . . . . Secondary . | . . . . . . Self-Inflicted Damage 58 | . . . 58 . . Shots 2 | . . . 2 . . Rammed 1 | . . 1 . . . Targets Rammed 1 | . . 1 . . . Kicked . | . . . . . . Crushed . | . . . . . . Highest Temperature 198 | . 72 153 198 . 172 Average Temperature 45 | . 21 46 73 . 53 Received Heat Transfer 750 | . . 258 339 . 153 Siege Activations . | . . . . . . Robots Corrupted . | . . . . . . Combat Hostiles . | . . . . . . Parts Fried . | . . . . . . Impact Corruptions . | . . . . . . Robots Melted . | . . . . . . Combat Hostiles . | . . . . . . Parts Melted 9 | . 2 6 1 . . Heat Transferred 2886 | . 740 1628 222 . 296 Parts Sabotaged . | . . . . . . Parts Stolen . | . . . . . . Parts Stripped . | . . . . . . Power Chain Reactions . | . . . . . . Alert | -11 -10 -9 -9 -9 -8 ------- Run | Yrd Mat Mat Min Exi Min Peak Influence 339 | . 114 339 141 . 45 Initial 101 | . . 2 101 . . Average 101 | . 39 158 122 . 4 Maximum Alert Level 1 | . . 1 . . . Low Security (%) 79 | 100 100 52 100 . 100 Level 1 20 | . . 47 . . . Level 2 . | . . . . . . Level 3 . | . . . . . . Level 4 . | . . . . . . Level 5 . | . . . . . . High Security . | . . . . . . Max Security . | . . . . . . Squads Dispatched 2 | . . 2 . . . Investigation . | . . . . . . Extermination . | . . . . . . Reinforcement 2 | . . 2 . . . Assault . | . . . . . . Garrison . | . . . . . . Intercept . | . . . . . . Searches Triggered . | . . . . . . Construction Impeded . | . . . . . . Haulers Reinforced . | . . . . . . Active Scanning Responses . | . . . . . . Cargo Convoy Interrupts . | . . . . . . Stealth | -11 -10 -9 -9 -9 -8 --------- Run | Yrd Mat Mat Min Exi Min Distress Signals 3 | . . 3 . . . Communications Jammed . | . . . . . . Distress Signals . | . . . . . . Times Spotted 52 | . 12 27 9 . 4 Peak Tracking Total 5 | . 4 4 5 . 3 Tactical Retreats 2 | . 1 . . . 1 Traps | -11 -10 -9 -9 -9 -8 ------- Run | Yrd Mat Mat Min Exi Min Traps Triggered . | . . . . . . Indirectly . | . . . . . . Trap Hack Attempts . | . . . . . . Triggered . | . . . . . . Disarmed . | . . . . . . Reprogrammed . | . . . . . . Reused . | . . . . . . Traps Extracted . | . . . . . . Installed . | . . . . . . Triggered . | . . . . . . Machines | -11 -10 -9 -9 -9 -8 ---------- Run | Yrd Mat Mat Min Exi Min Machines Disabled 1 | . 1 . . . . Max in Single Turn 1 | . 1 . . . . Machines Repaired . | . . . . . . Machines Dismantled . | . . . . . . Machines Sabotaged . | . . . . . . Overloaded Fab Kills . | . . . . . . Hacking | -11 -10 -9 -9 -9 -8 --------- Run | Yrd Mat Mat Min Exi Min Machines Accessed 8 | . 4 4 . . . Terminals 7 | . 4 3 . . . Fabricators . | . . . . . . Repair Stations . | . . . . . . Recycling Units 1 | . . 1 . . . Scanalyzers . | . . . . . . Garrison Access . | . . . . . . Total Hacks 22 | . 12 10 . . . Successful 10 | . 2 8 . . . Failed 12 | . 10 2 . . . Catastrophic 2 | . 2 . . . . Database Lockouts . | . . . . . . Manual 17 | . 8 9 . . . Terminals 20 | . 12 8 . . . Fabricators . | . . . . . . Repair Stations . | . . . . . . Recycling Units 2 | . . 2 . . . Scanalyzers . | . . . . . . Garrison Access . | . . . . . . Terminal Hacks 4 | . 1 3 . . . Level Access Points 1 | . . 1 . . . Branch Access Points 1 | . . 1 . . . Terminal Index 1 | . . 1 . . . Alert Level 1 | . 1 . . . . Fabricator Hacks . | . . . . . . Repair Station Hacks . | . . . . . . Recycling Unit Hacks 1 | . . 1 . . . Retrieve Components 1 | . . 1 . . . Scanalyzer . | . . . . . . Garrison Access Hacks . | . . . . . . Unauthorized Hacks 5 | . 1 4 . . . Terminals 4 | . 1 3 . . . Assimilate 2 | . 1 1 . . . Botnet 1 | . . 1 . . . Operators 1 | . . 1 . . . Fabricators . | . . . . . . Repair Stations . | . . . . . . Recycling Units 1 | . . 1 . . . Reject 1 | . . 1 . . . Scanalyzers . | . . . . . . Garrison Access . | . . . . . . Data Cores Recovered . | . . . . . . Used . | . . . . . . Hacking Detections 6 | . 4 2 . . . Full Trace Events . | . . . . . . Feedback Events . | . . . . . . Feedback Blocked . | . . . . . . Robot Schematics Acquired . | . . . . . . Robots Built . | . . . . . . Authchips . | . . . . . . Time . | . . . . . . Total Robot Build Rating . | . . . . . . Part Schematics Acquired . | . . . . . . Parts Built . | . . . . . . Authchips . | . . . . . . Time . | . . . . . . Total Part Build Rating . | . . . . . . Parts Repaired . | . . . . . . Time . | . . . . . . Parts Recycled . | . . . . . . Recycled Matter . | . . . . . . Retrieved Matter . | . . . . . . Retrieved Components 8 | . . 8 . . . Parts Scanalyzed . | . . . . . . Part Schematics Acquired . | . . . . . . Parts Damaged . | . . . . . . Bothacking | -11 -10 -9 -9 -9 -8 ------------ Run | Yrd Mat Mat Min Exi Min Used RIF Installer . | . . . . . . Robots Hacked . | . . . . . . Non-combat . | . . . . . . Combat . | . . . . . . Robot Hacks Applied . | . . . . . . Relay Couplers Released . | . . . . . . Fabnet Peak Effective % . | . . . . . . Robots Rewired . | . . . . . . Allies Hacked . | . . . . . . Hacks Repelled . | . . . . . . Allies | -11 -10 -9 -9 -9 -8 -------- Run | Yrd Mat Mat Min Exi Min Total Allies 1 | . 1 . . . . Largest Group 1 | . 1 1 1 1 1 Highest-Rated Group 10 | . 10 10 10 10 10 Highest-Rated Ally 10 | . 10 10 10 10 10 Total Orders . | . . . . . . Ally Attacks . | . . . . . . Total Damage . | . . . . . . Kills . | . . . . . . Allies Corrupted . | . . . . . . Allies Melted . | . . . . . . Intel | -11 -10 -9 -9 -9 -8 ------- Run | Yrd Mat Mat Min Exi Min Robot Analysis Total . | . . . . . . Derelict Logs Recovered 1 | . . . 1 . . Drone Launches . | . . . . . . Drone Recoveries . | . . . . . . Exploration | -11 -10 -9 -9 -9 -8 ------------- Run | Yrd Mat Mat Min Exi Min Turns Passed 4521 | 5 1016 1392 595 1235 278 Spaces Moved 1581 | 1 407 440 191 458 84 Core . | . . . . . . Treads 827 | 1 407 419 . . . Legs 754 | . . 21 191 458 84 Wheels . | . . . . . . Hover . | . . . . . . Flight . | . . . . . . Fastest Speed 160 | 160 160 240 270 270 180 Average Speed 250 | 160 226 241 270 270 265 Slowest Speed 270 | 160 240 270 270 270 270 Overloaded Moves . | . . . . . . Propulsion Burnouts . | . . . . . . Robots Hopped . | . . . . . . Cave-ins Triggered . | . . . . . . Exploration Rate (%) 44 | 2 70 48 37 88 22 Regions Visited 5 Branch Regions 3 Pre-discovered Areas 1 | . . . 1 . . Known Exits Taken 4 | . 1 1 1 1 . Unknown Exits Taken 1 | 1 . . . . . Scrap Searched 1 | . . . 1 . . Spaces Dug . | . . . . . . Terrain Destroyed 50 | . . 30 20 . . Melee . | . . . . . . Projectile . | . . . . . . AOE 50 | . . 30 20 . . Terrain Rammed . | . . . . . . Walls Destroyed . | . . . . . . Machines Disabled . | . . . . . . Actions | -11 -10 -9 -9 -9 -8 --------- Run | Yrd Mat Mat Min Exi Min Total 1920 | 3 454 662 227 458 116 Wait 168 | . 12 127 9 1 19 Move 1576 | . 406 439 190 457 84 Hop . | . . . . . . Pick Up 24 | . 7 15 2 . . Fast Attach . | . . . . . . Attach 12 | . 1 7 3 . 1 Detach . | . . . . . . Swap 13 | 3 2 8 . . . Drop 7 | . 1 6 . . . Fire 119 | . 25 59 23 . 12 Melee . | . . . . . . Ram . | . . . . . . Kick . | . . . . . . Crush 1 | . . 1 . . . Escape Stasis . | . . . . . . Rewire . | . . . . . . Trap . | . . . . . . Miscellaneous . | . . . . . . Route ------- -11/Scrapyard -10/Materials (discovered 5 exits: *Mat x3 / [*Min x2]) -9/Materials (discovered 4 exits: *Mat x3 / *Min) -9/Mines -9/Exiles -8/Mines (discovered 1 exit: *Mat) History --------- Turn | Location | Event 6 | -11/Scrapyard | Discovered new exit (range 0) 6 | -11/Scrapyard | Entered Materials 22 | -10/Materials | Discovered new exit (range 13) 212 | -10/Materials | Discovered new exit (range 7) 275 | -10/Materials | Identified exit to Materials 314 | -10/Materials | Build established: Mutant 352 | -10/Materials | Discovered new exit (range 9) 489 | -10/Materials | Discovered exit to Materials (range 16) 733 | -10/Materials | Discovered exit to Materials (range 15) 1022 | -10/Materials | Entered another Materials area 1022 | -9/Materials | Accompanied by 1 ally 1022 | -9/Materials | Evolved 2 slots: Utility x1, Weapon x1 1319 | -9/Materials | Build established: Skirmisher 1807 | -9/Materials | Destroyed 8 combat bots 1832 | -9/Materials | Identified exit to Mines 1832 | -9/Materials | Identified exit to Materials 2414 | -9/Materials | Entered Mines 2414 | -9/Mines | Accompanied by 1 ally 2431 | -9/Mines | Core integrity fell below 50% 2488 | -9/Mines | Learned location of Storage (-7) 2953 | -9/Mines | Deemed a non-threat by the Exiles lab entrance 2953 | -9/Mines | Discovered new exit (range 5) 2963 | -9/Mines | Identified exit to Exiles 3009 | -9/Mines | Entered Exiles 3009 | -9/Exiles | Found Exiles lab abandoned 3009 | -9/Exiles | Accompanied by 1 ally 3626 | -9/Exiles | Discovered new exit (range 12) 4242 | -9/Exiles | Identified exit to Mines 4244 | -9/Exiles | Entered Mines 4244 | -8/Mines | Accompanied by 1 ally 4498 | -8/Mines | Discovered exit to Materials (range 15) 4507 | -8/Mines | Core integrity fell below 20% 4522 | -8/Mines | Destroyed by G-50 Soldier with Heavy Laser Last Messages --------------- LOCATION=EXILES GOAL=ESCAPE 03299_ Connecting with EX-Prototypes Database... 03305_ Connecting with EX-Vault Access... 03550_ Extracted 150 matter. 03626_ EXIT=FOUND 04242_ EXIT=IDENTIFIED: MINES LOCATION=MINES GOAL=ESCAPE 04251_ K-01 Serf cleans the Laser Drill. 04262_ K-01 Serf collects debris. 04469_ Ion Engine destroyed. 04480_ G-47 Trooper destroyed. 04485_ Acquired 56 matter. 04495_ G-47 Trooper destroyed. 04498_ EXIT=FOUND: MATERIALS 04510_ Signal Interpreter destroyed. 04512_ Sensor Array destroyed. 04516_ VSS Leg destroyed. 04518_ Assault Rifle destroyed. Map ----- +----------------------------------------------------+ | | | | | | | | | | | | | | | | | | | | | | | | | | | | | | | ??????????????????????????????????????????? | | ??????????????????????????????????????????? | | ??????????????????????????????????????????? | | ??????????????????????????????????????????# | | ?????????????????????????????????????????## | | ????????????????????????????????????????## | | ???? ??????????????????????????????????## | | ????? < ############??????????????????# | | ????? #################### | | ????????? ##= = | | ????????????????# @ ################# | | ???????????????# ####???????????????## | | ?????????????# #???????????????????## | | ????????????# ##????????????????????# | | ????????????# = ###?????????????????????# | | ????????????# %#????????????????????????# | | ????????????## g????????????????????????? | | ?????????????## ????????????????????????? | | ??????????????# ???????????????????????? | | ??????????????# ?????????????????????????# | | ??????????????# ?????????????????????????## | | ??????????????##??????????????????????????# | | ??????????????????????????????????????????? | | ??????????????????????????????????????????? | | ??????????????????????????????????????????? | | ??????????????????????????????????????????? | | ??????????????????????????????????????????? | | ??????????????????????????????????????????? | | ??????????????????????????????????????????? | | ??????????????????????????????????????????? | | ??????????????????????????????????????????? | | ??????????????????????????????????????????? | | ??????????????????????????????????????????? | | ??????????????????????????????????????????? | | ??????????????????????????????????????????? | +----------------------------------------------------+ Best States ------------- Heat Dissipation 28 Energy Generation 14 Energy Capacity 275 Matter Stores 300 Matter Capacity 300 Sight Range 16 Robot Scan Range 14 Terrain Scan Density 10 Evasion (%) 40 Recoil Reduction 2 Item Schematics ----------------- None Robot Schematics ------------------ None Fabricated ------------ Nothing Alien Tech Used ----------------- None Achievements -------------- None Challenges ------------ None Game ------ Seed MobileRingChronowheel Manual? 0 Play Time 00:18:21 Cumulative 42.7 hours Start 2024.08.12 @ 09:00:55 End 2024.08.12 @ 09:18:26 Sessions 1 Manual Loads 0 Difficulty Rogue Special Mode None Game No. 58 Rogue 36 Adventurer 20 Explorer 2 Win Type - Total 0 Types 0/0/0/0/0/0/0/0/0 Lore% 34 Gallery% 34 Achievement% 33 Wizard Run 0 Options --------- Layout 1 ASCII 0 Keyboard 0 Movement Numpad Keybinds 0 Fullscreen 2 Font 24/Smallcaps Map View 50x35 Zoom Use 0% Tactical HUD 1 Map Filters NONE Filters NONE Steam 1 RUN: 727f678a-9698-4e65-bc23-18b4f8829a7c